bitfinex/quotes_SOLUSD_20240708
["timestamp","ask_amount","ask_price","bid_price","bid_amount"]
[1720441316742,7.0729,141.39,141.34,16.3357]
[1720441316940,17.6755,141.44,141.34,16.3357]
[1720441317253,7.0725,141.4,141.34,16.3357]
[1720441317461,20.17,141.43,141.34,16.3357]
[1720441317769,7.0728,141.39,141.34,16.3357]
[1720441317944,61.71646882,141.47,141.34,16.3357]
[1720441318151,5.90416882,141.47,141.34,16.3357]
[1720441318345,7.0719,141.41,141.34,16.3357]
[1720441319835,17.6746,141.45,141.34,16.3357]
[1720441320038,7.0718,141.41,141.34,16.3357]
[1720441320462,7.0728,141.39,141.34,16.3357]
[1720441320735,7.0725,141.4,141.34,16.3357]
[1720441320944,7.0715,141.42,141.34,16.3357]
[1720441321152,27.0719,141.41,141.34,16.3357]
[1720441321656,7.0729,141.39,141.34,16.3357]
[1720441321860,7.0723,141.4,141.34,16.3357]
[1720441322165,7.0721,141.4,141.34,16.3357]
[1720441322374,7.0727,141.39,141.34,16.3357]
[1720441322663,7.0733,141.38,141.34,16.3357]
[1720441323040,7.0727,141.39,141.34,16.3357]
[1720441323251,7.0733,141.38,141.34,16.3357]
[1720441323650,7.0728,141.39,141.34,16.3357]
[1720441323866,7.0721,141.4,141.34,16.3357]
[1720441324058,20.0,141.39,141.34,16.3357]
[1720441324574,7.0717,141.41,141.34,16.3357]
[1720441324747,7.0686,141.48,141.38,15.7807]
[1720441324941,7.0689,141.47,141.39,6.285]
[1720441325147,0.2,141.49,141.39,6.285]
[1720441325545,7.0687,141.47,141.39,6.285]
[1720441325945,7.0692,141.46,141.39,6.285]
[1720441326341,7.0687,141.47,141.39,6.285]
[1720441326966,7.0694,141.46,141.39,6.285]
[1720441327266,7.0702,141.44,141.39,6.285]
[1720441327683,7.0704,141.44,141.39,6.285]
[1720441327967,7.071,141.43,141.39,6.285]
[1720441328477,7.0698,141.45,141.39,6.285]
[1720441329271,0.2,141.49,141.4,16.0655]
[1720441329448,0.2,141.49,141.41,6.1645]
[1720441329852,7.2676,141.49,141.41,6.1645]
[1720441330377,7.0682,141.48,141.41,6.1645]
[1720441330544,7.2677,141.49,141.41,6.1645]
[1720441331285,0.2,141.49,141.41,6.1645]
[1720441331856,7.0683,141.48,141.41,6.1645]
[1720441332069,7.0682,141.48,141.41,6.1645]
[1720441332275,0.2,141.49,141.41,6.1645]
[1720441332455,7.2681,141.49,141.41,6.1645]
[1720441332768,7.0684,141.48,141.41,6.1645]
[1720441333151,0.2,141.49,141.41,6.1645]
[1720441333875,0.2,141.49,141.43,6.5933]
[1720441334240,0.2,141.49,141.44,16.5796]
[1720441335860,7.0632,141.58,141.48,16.5796]
[1720441336061,7.2626,141.59,141.49,8.00644389]
[1720441336265,0.2,141.59,141.49,8.00644389]
[1720441336763,0.2,141.59,141.51,6.5933]
[1720441336968,0.2,141.59,141.52,1.41281877]
[1720441337170,7.0606,141.64,141.53,22.4355]
[1720441337366,7.0606,141.64,141.54,1.41252647]
[1720441337674,7.0606,141.63,141.55,1.41242707]
[1720441337877,7.0605,141.64,141.55,1.41242707]
[1720441338277,7.0602,141.64,141.55,1.41242707]
[1720441338451,17.6473,141.67,141.55,1.41242707]
[1720441338651,17.6473,141.67,141.53,22.4355]
[1720441338883,20.0,141.66,141.53,22.4355]
[1720441339054,17.6497,141.65,141.53,22.4355]
[1720441339264,17.6455,141.68,141.53,22.4355]
[1720441339453,7.0625,141.6,141.54,0.47134458]
[1720441339792,7.0618,141.61,141.53,22.4355]
[1720441339949,17.651,141.64,141.53,22.4355]
[1720441340145,7.0627,141.59,141.53,22.4355]
[1720441340380,7.0632,141.58,141.53,22.4355]
[1720441340676,17.6537,141.62,141.53,22.4355]
[1720441340880,7.0622,141.6,141.53,22.4355]
[1720441341255,7.0618,141.61,141.53,22.4355]
[1720441341562,59.7,141.69,141.53,22.4355]
[1720441341747,7.0625,141.6,141.53,22.4355]
[1720441341951,7.0617,141.61,141.53,22.4355]
[1720441342464,7.0611,141.63,141.53,22.4355]
[1720441342661,17.647,141.67,141.53,22.4355]
[1720441343047,5.98666105,141.69,141.53,22.4355]
[1720441343760,7.0604,141.64,141.53,22.4355]
[1720441344068,5.98666105,141.69,141.53,22.4355]
[1720441344252,20.0,141.68,141.53,22.4355]
[1720441344453,7.0607,141.63,141.53,22.4355]
[1720441345059,7.0603,141.64,141.53,22.4355]
[1720441345580,0.2,141.69,141.56,16.2363]
[1720441345816,0.2,141.69,141.57,6.3598]
[1720441346552,0.2,141.69,141.58,15.2289]
[1720441346757,0.2,141.69,141.59,6.2393]
[1720441347051,7.2578,141.69,141.59,6.2393]
[1720441347253,0.2,141.69,141.59,6.2393]
[1720441348054,7.2578,141.69,141.59,6.2393]
[1720441348261,0.2,141.69,141.59,6.2393]
[1720441348481,17.8448,141.69,141.59,6.2393]
[1720441348692,0.2,141.69,141.59,6.2393]
[1720441348982,17.6475,141.67,141.59,6.2393]
[1720441349191,20.0,141.66,141.59,6.2393]
[1720441349598,17.6497,141.65,141.59,6.2393]
[1720441350204,20.0,141.64,141.59,6.2393]
[1720441350584,7.0621,141.6,141.59,6.2393]
[1720441351303,7.0617,141.61,141.59,6.2393]
[1720441351880,7.0612,141.62,141.59,6.2393]
[1720441352786,20.0,141.65,141.59,6.2393]
[1720441352977,7.0621,141.6,141.59,6.2393]
[1720441354207,7.0643,141.56,141.55,6.2676]
[1720441354386,7.066,141.53,141.47,22.3758]
[1720441354706,17.6616,141.55,141.47,22.3758]
[1720441354897,94.8057,141.62,141.47,22.3758]
[1720441354898,17.6587,141.58,141.47,22.3758]
[1720441355099,52.9752,141.58,141.47,29.4439]
[1720441355406,7.0652,141.54,141.48,7.0677]
[1720441355587,7.0647,141.55,141.49,7.0676]
[1720441355901,7.0653,141.54,141.48,7.0679]
[1720441356078,7.0648,141.55,141.48,7.0677]
[1720441356278,17.6587,141.58,141.49,7.0672]
[1720441357002,7.064,141.57,141.47,22.3758]
[1720441357217,17.655,141.61,141.51,7.0662]
[1720441357522,23.34984581,141.61,141.51,7.0662]
[1720441357685,20.0,141.6,141.51,7.0662]
[1720441358702,7.0637,141.57,141.51,7.0662]
[1720441359001,7.0635,141.58,141.51,7.0664]
[1720441359203,20.0,141.6,141.48,6.0341]
[1720441359524,20.0,141.6,141.47,16.1082]
[1720441359525,7.0624,141.6,141.55,22.0112]
[1720441360014,7.0627,141.59,141.55,22.0112]
[1720441360204,7.0632,141.58,141.55,22.0112]
[1720441360411,35.3061,141.62,141.55,22.0112]
[1720441360601,7.0641,141.56,141.55,22.0112]
[1720441360920,7.0637,141.57,141.55,22.0112]
[1720441361298,7.0633,141.58,141.55,22.0112]
[1720441361813,7.0627,141.59,141.55,22.0112]
[1720441361981,17.651,141.64,141.55,22.0112]
[1720441362183,7.0636,141.58,141.55,22.0112]
[1720441362405,7.0637,141.57,141.55,22.0112]
[1720441362821,20.0,141.63,141.55,22.0112]
[1720441362822,7.0641,141.56,141.55,22.0112]
[1720441363000,17.6561,141.6,141.55,22.0112]
[1720441363188,13.11526393,141.66,141.55,22.0112]
[1720441363404,5.71750896,141.66,141.55,22.0112]
[1720441363613,35.4892,141.69,141.55,29.0756]
[1720441363809,35.4892,141.69,141.55,22.0112]
[1720441364218,17.6496,141.65,141.55,22.0112]
[1720441364396,7.0618,141.61,141.55,22.0112]
[1720441364789,7.063,141.59,141.55,22.0112]
[1720441365011,6.09557257,141.69,141.56,6.1077]
[1720441365213,6.09557257,141.69,141.56,23.7677]
[1720441365920,6.09557257,141.69,141.58,17.6574]
[1720441366116,7.06,141.65,141.59,7.0626]
[1720441366414,7.0601,141.64,141.58,24.7204]
[1720441367292,7.0611,141.62,141.56,6.1077]
[1720441367495,7.0619,141.61,141.56,6.1077]
[1720441367806,7.0612,141.62,141.56,6.1077]
[1720441368110,7.0617,141.61,141.56,6.1077]
[1720441368339,6.09557257,141.69,141.56,6.1077]
[1720441368517,35.2953,141.67,141.56,6.1077]
[1720441368728,17.6509,141.64,141.56,6.1077]
[1720441369026,7.0625,141.6,141.56,6.1077]
[1720441369325,7.0621,141.6,141.56,6.1077]
[1720441369485,7.0617,141.61,141.56,6.1077]
[1720441369685,7.0623,141.6,141.56,6.1077]
[1720441369901,7.0628,141.59,141.56,6.1077]
[1720441370490,14.7137,141.64,141.56,6.1077]
[1720441371500,7.0625,141.6,141.56,6.1077]
[1720441371693,7.0618,141.61,141.56,6.1077]
[1720441372521,14.7137,141.64,141.56,6.1077]
[1720441372707,7.062,141.61,141.56,6.1077]
[1720441372901,14.7137,141.64,141.56,6.1077]
[1720441373104,7.0636,141.57,141.56,6.1077]
[1720441373538,7.0641,141.56,141.55,15.9771]
[1720441373835,35.3024,141.64,141.55,15.9771]
[1720441373836,7.0633,141.58,141.55,15.9771]
[1720441374127,17.6552,141.61,141.55,15.9771]
[1720441374427,20.0,141.6,141.55,15.9771]
[1720441374722,7.0628,141.59,141.55,15.9771]
[1720441375404,58.86870568,141.64,141.55,15.9771]
[1720441375721,7.0628,141.59,141.55,15.9771]
[1720441376027,7.0611,141.62,141.56,7.0639]
[1720441376398,7.0611,141.62,141.56,7.0638]
[1720441376601,7.0605,141.64,141.58,7.063]
[1720441376927,7.0606,141.63,141.57,24.7221]
[1720441377727,7.0612,141.62,141.57,17.6587]
[1720441377926,7.0617,141.61,141.56,6.6205]
[1720441378136,12.85188502,141.67,141.61,7.0613]
[1720441378303,7.0594,141.66,141.6,24.7165]
[1720441378633,7.0596,141.65,141.6,17.6547]
[1720441379533,7.0593,141.66,141.6,24.7168]
[1720441379709,7.0587,141.67,141.61,29.146]
[1720441380035,7.0587,141.67,141.61,22.0845]
[1720441380205,7.0592,141.66,141.61,22.0845]
[1720441380407,7.0598,141.65,141.61,22.0845]
[1720441380919,7.0611,141.63,141.61,22.0845]
[1720441381122,7.0611,141.62,141.61,22.0845]
[1720441381631,7.0607,141.63,141.61,22.0845]
[1720441382205,7.0603,141.64,141.61,22.0845]
[1720441382403,7.0607,141.63,141.61,22.0845]
[1720441382714,7.0611,141.62,141.61,6.5567]
[1720441383028,7.0621,141.61,141.57,21.8571]
[1720441383423,7.0608,141.63,141.57,28.9207]
[1720441383629,7.0612,141.62,141.57,21.8571]
[1720441383933,17.6495,141.65,141.57,21.8571]
[1720441384107,7.0622,141.6,141.57,21.8571]
[1720441384310,17.6519,141.63,141.57,21.8571]
[1720441384509,7.063,141.59,141.57,21.8571]
[1720441385213,7.0622,141.6,141.57,21.8571]
[1720441385415,7.0631,141.58,141.57,21.8571]
[1720441385614,7.0631,141.58,141.57,6.0266]
[1720441387210,7.0651,141.54,141.53,15.5431]
[1720441387809,7.0647,141.55,141.53,15.5431]
[1720441388018,7.0651,141.54,141.53,15.5431]
[1720441388234,5.8016501,141.59,141.53,15.5431]
[1720441388429,17.8263,141.6,141.53,15.5431]
[1720441388636,7.0649,141.55,141.53,15.5431]
[1720441388822,17.6584,141.58,141.53,15.5431]
[1720441389024,20.17,141.59,141.53,15.5431]
[1720441389207,7.0641,141.57,141.53,15.5431]
[1720441389412,7.0642,141.56,141.53,15.5431]
[1720441390322,0.17,141.59,141.49,15.3144]
[1720441390323,0.17,141.57,141.49,15.3144]
[1720441390524,35.4836,141.59,141.49,15.3144]
[1720441390729,7.0667,141.51,141.49,15.3144]
[1720441390938,17.6622,141.55,141.49,15.3144]
[1720441391118,20.0,141.54,141.49,15.3144]
[1720441391931,7.0663,141.52,141.49,15.3144]
[1720441392738,7.0655,141.54,141.49,15.3144]
[1720441393139,7.0648,141.55,141.49,22.3819]
[1720441393526,7.0648,141.55,141.49,15.3144]
[1720441393853,7.0653,141.54,141.49,15.3144]
[1720441395135,7.0656,141.53,141.49,15.3144]
[1720441395447,7.0665,141.52,141.49,15.3144]
[1720441395651,7.0659,141.53,141.49,15.3144]
[1720441395864,7.0661,141.52,141.49,15.3144]
[1720441396224,23.70361314,141.59,141.49,15.3144]
[1720441396547,7.0661,141.52,141.49,15.3144]
[1720441397024,7.0658,141.53,141.49,15.3144]
[1720441397436,7.0653,141.54,141.49,15.3144]
[1720441397863,7.0656,141.53,141.49,15.3144]
[1720441398146,17.6624,141.55,141.49,15.3144]
[1720441398384,7.0671,141.5,141.49,15.3144]
[1720441398840,17.6643,141.53,141.49,15.3144]
[1720441399445,17.6643,141.53,141.45,23.032]
[1720441399446,7.0677,141.49,141.45,23.032]
[1720441399646,7.0691,141.46,141.45,23.032]
[1720441400652,7.0691,141.46,141.41,24.7496]
[1720441400653,17.6695,141.49,141.41,22.2983]
[1720441400828,17.6718,141.47,141.41,22.2983]
[1720441401155,7.0699,141.45,141.41,22.2983]
[1720441401459,7.0701,141.44,141.41,22.2983]
[1720441402849,17.673,141.46,141.36,6.4855]
[1720441403055,7.072,141.41,141.36,6.4855]
[1720441403667,7.0713,141.42,141.36,13.5596]
[1720441403868,7.0712,141.42,141.36,13.5596]
[1720441404656,0.17,141.45,141.36,6.4855]
[1720441404657,17.6759,141.44,141.36,6.4855]
[1720441404864,7.0725,141.4,141.36,6.4855]
[1720441405363,17.6759,141.44,141.36,6.4855]
[1720441405755,0.17,141.45,141.36,6.4855]
[1720441405963,7.0716,141.41,141.36,6.4855]
[1720441406572,7.0721,141.4,141.36,6.4855]
[1720441406752,7.0736,141.37,141.36,6.4855]
[1720441407155,7.0746,141.35,141.32,6.313]
[1720441407370,7.0751,141.34,141.32,6.313]
[1720441407554,7.0747,141.35,141.32,6.313]
[1720441408166,17.682,141.39,141.32,6.313]
[1720441408167,7.0754,141.34,141.32,6.313]
[1720441408670,7.0756,141.33,141.32,6.313]
[1720441408879,7.0761,141.32,141.31,0.2]
[1720441409255,7.0757,141.33,141.31,0.2]
[1720441410467,7.0761,141.32,141.31,0.2]
[1720441411065,20.17,141.32,141.25,16.2393]
[1720441411287,7.0785,141.28,141.25,16.2393]
[1720441411653,17.694,141.3,141.22,6.1026]
[1720441411850,7.0806,141.23,141.22,6.1026]
[1720441412264,7.0811,141.22,141.21,16.774]
[1720441412561,17.6988,141.26,141.21,16.774]
[1720441412884,0.17,141.27,141.21,16.774]
[1720441413087,7.0811,141.22,141.21,16.774]
[1720441413268,7.082,141.21,141.18,6.4623]
[1720441413883,7.0822,141.2,141.18,6.4623]
[1720441415178,7.0817,141.21,141.18,6.4623]
[1720441415369,17.6969,141.27,141.18,6.4623]
[1720441415571,7.0798,141.25,141.18,13.5449]
[1720441415785,58.85303141,141.31,141.18,6.4623]
[1720441415962,58.85303141,141.31,141.19,7.0825]
[1720441416571,7.0792,141.26,141.19,7.0825]
[1720441416779,7.0787,141.27,141.19,17.7059]
[1720441417076,23.46913141,141.31,141.19,24.7884]
[1720441417278,23.46913141,141.31,141.2,7.082]
[1720441417502,7.0791,141.26,141.19,24.7881]
[1720441417780,23.46913141,141.31,141.19,17.7059]
[1720441418281,7.0785,141.28,141.22,7.081]
[1720441418482,7.0777,141.29,141.22,7.081]
[1720441418655,7.0781,141.28,141.22,7.93306307]
[1720441418857,5.77633141,141.31,141.18,31.2526]
[1720441419084,7.0806,141.24,141.18,24.1696]
[1720441419291,7.0806,141.24,141.18,31.2526]
[1720441419585,7.0792,141.26,141.19,7.0822]
[1720441419757,7.0796,141.25,141.19,7.0822]
[1720441419962,7.0791,141.26,141.2,7.082]
[1720441420160,7.0782,141.28,141.21,7.0814]
[1720441420566,7.0788,141.27,141.2,24.7867]
[1720441421061,7.0782,141.28,141.22,7.081]
[1720441421880,7.0782,141.28,141.23,22.4536]
[1720441422380,17.6923,141.31,141.23,22.4536]
[1720441422594,20.17,141.3,141.23,22.4536]
[1720441422881,7.0791,141.26,141.23,22.4536]
[1720441423196,7.0801,141.24,141.23,22.4536]
[1720441423361,7.0801,141.24,141.23,6.3442]
[1720441424871,7.0788,141.27,141.23,6.3442]
[1720441425073,7.0793,141.26,141.23,6.3442]
[1720441425403,7.0801,141.24,141.23,6.3442]
[1720441425688,7.0801,141.24,141.19,15.9975]
[1720441425689,20.0,141.3,141.19,22.6184]
[1720441425865,7.0821,141.2,141.19,22.6184]
[1720441426067,7.0816,141.22,141.19,22.6184]
[1720441426386,17.6998,141.25,141.19,22.6184]
[1720441426583,7.0807,141.23,141.19,22.6184]
[1720441427195,53.0869,141.28,141.19,29.7009]
[1720441427196,7.0799,141.25,141.19,29.7009]
[1720441427366,20.0,141.3,141.19,22.6184]
[1720441427563,23.55703402,141.31,141.22,7.0806]
[1720441427979,23.55703402,141.31,141.23,1.32274143]
[1720441428297,7.0788,141.27,141.23,1.32274143]
[1720441428476,7.0788,141.27,141.22,1.32309075]
[1720441428660,7.0783,141.28,141.22,8.40419075]
[1720441428997,17.6946,141.29,141.2,17.7043]
[1720441429289,20.0,141.28,141.2,17.7043]
[1720441429867,17.6946,141.29,141.2,24.7861]
[1720441429868,7.0793,141.26,141.2,24.7861]
[1720441430171,7.0797,141.25,141.19,29.7009]
[1720441430765,17.6971,141.27,141.19,22.6184]
[1720441430985,7.081,141.23,141.19,22.6184]
[1720441432068,17.6923,141.4,141.19,22.6184]
[1720441432272,38.14,141.37,141.24,7.0801]
[1720441432574,42.78839572,141.35,141.22,17.7021]
[1720441432770,42.78839572,141.35,141.22,24.7831]
[1720441432974,42.78839572,141.35,141.2,7.082]
[1720441433182,7.0794,141.26,141.2,7.082]
[1720441433408,7.0786,141.27,141.21,7.0814]
[1720441433779,17.6946,141.29,141.19,40.3243]
[1720441433978,7.0799,141.25,141.19,47.4066]
[1720441434493,17.6946,141.29,141.19,40.3243]
[1720441434700,7.0787,141.27,141.21,7.0815]
[1720441435063,27.0782,141.28,141.22,7.081]
[1720441435469,7.0786,141.27,141.21,24.7852]
[1720441436093,7.0792,141.26,141.21,17.7038]
[1720441436399,17.69,141.33,141.21,17.7038]
[1720441436589,7.078,141.29,141.23,7.0805]
[1720441437178,7.0772,141.3,141.24,7.08]
[1720441437383,7.0772,141.3,141.25,6.1897]
[1720441437672,27.0777,141.29,141.25,6.1897]
[1720441438690,20.0,141.29,141.25,6.1897]
[1720441439084,13.3212485,141.35,141.26,15.3463]
[1720441439379,7.0769,141.31,141.26,15.3463]
[1720441439795,17.6881,141.34,141.26,15.3463]
[1720441440103,7.0776,141.29,141.26,15.3463]
[1720441440475,41.2782568,141.36,141.25,6.1897]
[1720441440681,7.0791,141.26,141.25,6.1897]
[1720441442003,17.6927,141.31,141.25,6.1897]
[1720441442210,7.0782,141.28,141.25,6.1897]
[1720441442707,7.0761,141.32,141.26,8.493764]
[1720441443208,7.0788,141.27,141.25,6.1897]
[1720441443380,7.0782,141.28,141.25,6.1897]
[1720441443881,7.0784,141.28,141.25,6.1897]
[1720441444081,17.6917,141.31,141.25,6.1897]
[1720441444289,7.0786,141.27,141.25,6.1897]
[1720441444494,7.0781,141.29,141.25,6.1897]
[1720441444695,7.0782,141.28,141.25,6.1897]
[1720441445100,17.6917,141.31,141.25,6.1897]
[1720441445284,35.3723,141.36,141.25,6.1897]
[1720441445285,17.6947,141.29,141.25,6.1897]
[1720441445487,7.0801,141.24,141.22,21.2184]
[1720441445809,17.6947,141.29,141.22,21.2184]
[1720441446004,7.0784,141.28,141.22,28.2992]
[1720441446206,7.0777,141.29,141.23,24.7818]
[1720441446394,7.0782,141.28,141.23,17.7015]
[1720441446709,7.0782,141.28,141.23,24.7821]
[1720441447415,17.6912,141.32,141.23,24.7821]
[1720441447591,7.0788,141.27,141.22,21.2184]
[1720441448720,7.0783,141.28,141.22,28.2995]
[1720441449393,35.3879,141.3,141.22,6.0666]
[1720441449718,7.0806,141.23,141.22,6.0666]
[1720441450413,7.0813,141.22,141.18,15.7972]
[1720441450619,7.0803,141.24,141.18,22.8803]
[1720441450996,7.0791,141.26,141.2,7.0819]
[1720441451322,7.0801,141.24,141.19,17.7064]
[1720441451613,0.17,141.27,141.18,15.7972]
[1720441451614,7.0806,141.23,141.18,15.7972]
[1720441451813,7.0813,141.22,141.18,15.7972]
[1720441452020,0.17,141.27,141.18,15.7972]
[1720441452189,7.0824,141.2,141.18,15.7972]
[1720441452610,7.0818,141.21,141.18,15.7972]
[1720441453127,7.0822,141.2,141.18,15.7972]
[1720441453300,7.0826,141.19,141.17,6.4264]
[1720441453510,35.3954,141.27,141.17,6.4264]
[1720441453511,7.0831,141.18,141.17,6.4264]
[1720441453700,7.0821,141.2,141.17,6.4264]
[1720441453905,17.6996,141.25,141.17,6.4264]
[1720441454104,26.22318021,141.24,141.17,6.4264]
[1720441454311,7.0826,141.2,141.17,6.4264]
[1720441454693,7.0818,141.21,141.17,6.4264]
[1720441455097,7.0821,141.2,141.17,6.4264]
[1720441455292,17.7018,141.23,141.17,6.4264]
[1720441455515,20.17,141.22,141.17,6.4264]
[1720441455943,20.0,141.22,141.17,6.4264]
[1720441456106,17.6987,141.26,141.17,6.4264]
[1720441456311,7.0811,141.22,141.17,6.4264]
[1720441456999,7.0821,141.2,141.17,6.4264]
[1720441457526,7.0827,141.19,141.17,6.4264]
[1720441457906,7.0823,141.2,141.17,6.4264]
[1720441458123,23.47626951,141.27,141.17,6.4264]
[1720441458300,7.0801,141.24,141.19,17.7059]
[1720441458505,17.868,141.26,141.17,6.4264]
[1720441458704,7.0812,141.22,141.17,6.4264]
[1720441459204,7.0816,141.21,141.17,6.4264]
[1720441459407,17.7007,141.24,141.17,6.4264]
[1720441459606,7.0827,141.19,141.17,6.4264]
[1720441459817,7.0822,141.2,141.17,6.4264]
[1720441460020,7.0817,141.21,141.17,6.4264]
[1720441460424,7.0821,141.2,141.17,6.4264]
[1720441460625,7.0816,141.21,141.17,6.4264]
[1720441460939,7.0813,141.22,141.17,6.4264]
[1720441461609,7.0816,141.21,141.17,6.4264]
[1720441462523,7.0813,141.22,141.17,6.4264]
[1720441462918,7.0819,141.21,141.17,6.4264]
[1720441463118,7.0813,141.22,141.17,6.4264]
[1720441463432,7.0817,141.21,141.17,6.4264]
[1720441463805,37.7019,141.23,141.17,6.4264]
[1720441464003,33.79,141.21,141.14,15.5826]
[1720441464202,7.0846,141.15,141.14,15.5826]
[1720441464832,7.0843,141.16,141.14,15.5826]
[1720441465333,7.0838,141.17,141.14,15.5826]
[1720441466427,7.0842,141.16,141.14,15.5826]
[1720441466813,7.0846,141.15,141.14,15.5826]
[1720441467732,7.0843,141.16,141.14,15.5826]
[1720441468236,7.0833,141.18,141.14,15.5826]
[1720441468413,7.0828,141.19,141.14,15.5826]
[1720441468727,7.0831,141.18,141.14,15.5826]
[1720441468932,7.0837,141.17,141.14,15.5826]
[1720441469138,7.0842,141.16,141.14,15.5826]
[1720441470940,17.7056,141.2,141.14,15.5826]
[1720441471313,7.0842,141.16,141.14,15.5826]
[1720441471628,7.0837,141.17,141.14,15.5826]
[1720441471826,7.0833,141.18,141.14,15.5826]
[1720441472035,7.0828,141.19,141.14,15.5826]
[1720441472610,7.0832,141.18,141.14,15.5826]
[1720441473107,7.0837,141.17,141.14,15.5826]
[1720441473715,21.9952,141.38,141.27,6.6181]
[1720441474024,6.05040783,141.37,141.28,7.078]
[1720441474226,6.04920769,141.36,141.28,7.078]
[1720441474433,6.04920769,141.35,141.27,31.3925]
[1720441474741,21.33372734,141.38,141.27,31.3925]
[1720441475239,20.0,141.37,141.28,0.58133769]
[1720441475440,314.6155,141.42,141.29,17.6935]
[1720441475613,23.72533222,141.41,141.3,7.6582554]
[1720441475812,17.6795,141.41,141.3,7.6582554]
[1720441476024,7.0745,141.36,141.3,0.5812554]
[1720441476427,320.37627702,141.42,141.29,1.4151299]
[1720441476743,7.0764,141.32,141.27,6.6181]
[1720441477337,7.0764,141.32,141.28,1.41100661]
[1720441477538,17.6809,141.4,141.29,17.6937]
[1720441477846,7.074,141.37,141.3,7.0767]
[1720441478045,7.074,141.37,141.29,17.6937]
[1720441478628,21.23257702,141.42,141.31,17.691]
[1720441478821,5.76077702,141.42,141.33,7.0751]
[1720441479030,5.76077702,141.42,141.34,1.31074532]
[1720441479217,7.0729,141.39,141.34,1.31074532]
[1720441479738,17.6772,141.43,141.34,1.31074532]
[1720441479951,7.073,141.39,141.34,1.31074532]
[1720441480957,7.0719,141.41,141.35,6.1342]
[1720441481134,7.0712,141.42,141.36,1.31055987]
[1720441481332,7.0718,141.41,141.36,1.31055987]
[1720441482320,7.0706,141.44,141.37,7.0734]
[1720441482633,5.67355541,141.46,141.37,17.6835]
[1720441482826,7.0717,141.41,141.35,29.6102]
[1720441483033,7.0715,141.42,141.36,7.0736]
[1720441483239,7.0718,141.41,141.35,29.6103]
[1720441483432,7.0718,141.41,141.35,22.5359]
[1720441484022,7.0712,141.42,141.35,29.6101]
[1720441484223,7.0712,141.42,141.35,22.5359]
[1720441484745,17.6732,141.46,141.36,17.6848]
[1720441484933,7.0717,141.41,141.36,17.6848]
[1720441485545,7.0717,141.41,141.37,1.41439657]
[1720441485848,7.0712,141.42,141.37,1.41439657]
[1720441486022,7.0716,141.41,141.37,1.41439657]
[1720441487236,7.0712,141.42,141.37,1.41439657]
[1720441489235,7.0707,141.43,141.37,8.48789657]
[1720441489738,0.2,141.49,141.38,6.4311]
[1720441490244,17.6711,141.48,141.38,6.4311]
[1720441490426,20.0,141.47,141.38,6.4311]
[1720441490747,7.0699,141.45,141.39,7.0722]
[1720441491044,7.0701,141.44,141.38,13.5041]
[1720441491246,7.0697,141.45,141.39,7.0725]
[1720441491835,7.0692,141.46,141.4,7.072]
[1720441492339,7.0687,141.47,141.41,7.0715]
[1720441492850,6.05395866,141.49,141.39,7.0725]
[1720441492851,7.0697,141.45,141.39,7.0725]
[1720441493234,17.8693,141.49,141.4,21.308]
[1720441493447,7.0686,141.47,141.41,7.0713]
[1720441493740,7.0682,141.48,141.42,7.071]
[1720441494152,7.0686,141.47,141.42,7.071]
[1720441494332,7.0686,141.47,141.41,7.0715]